Cogmind - Beta 14 @@@ ROGUE MODE // 2024.12.22 @ 21:31:25 Player: yua241 Result: Destroyed by BA-FSV(R) with Subdweller Machine Gun Performance ------------- Evolutions (0) 0 Regions Visited (2) 400 Robots Destroyed (23) 115 Value Destroyed (648) 648 Prototype IDs (0) 0 Alien Tech Used (0) 0 Bonus (0) 0 TOTAL SCORE: 1163 Bonus ------- None Cogmind --------- Core Integrity 0/250 Matter 500/500 Energy 250/250 System Corruption 0% Temperature Cool (0) Movement Walking (120) Location -10/Subcaves Parts ------- > --- POWER (1) -------- Ion Engine > --- PROPULSION (2) --- Light Treads Myomer Leg > --- UTILITY (2) ------ Small Storage Unit High-capacity Matter Pod > --- WEAPON (2) ------- Assault Rifle > --- INVENTORY (8) ---- Light Ion Engine Signal Interpreter Scrap Shield Beam Cannon Beam Cannon Light Assault Rifle Bore Cannon Peak State ------------ > --- POWER ------------ Ion Engine > --- PROPULSION ------- Light Treads Myomer Leg > --- UTILITY ---------- Small Storage Unit High-capacity Matter Pod > --- WEAPON ----------- Assault Rifle Assault Rifle > --- INVENTORY -------- Light Ion Engine Signal Interpreter Scrap Shield Beam Cannon Beam Cannon Light Assault Rifle Bore Cannon [Rating: 14] Favorites ----------- Power Ion Engine Engine Ion Engine Propulsion Aluminum Leg Treads Light Treads Leg Aluminum Leg Utility Small Storage Unit Storage Small Storage Unit Weapon Assault Rifle Energy Gun Small Laser Ballistic Gun Assault Rifle Launcher Grenade Launcher Build | -11 -10 -10 ------- Run | Yrd Mat Sub Slots Evolved . | . . . Power . | . . . Propulsion . | . . . Utility . | . . . Weapon . | . . . Parts Attached 17 | 6 10 1 Power 1 | 1 . . Engine 1 | 1 . . Core . | . . . Reactor . | . . . Propulsion 7 | 2 4 1 Treads 2 | . 2 . Leg 5 | 2 2 1 Wheel . | . . . Hover . | . . . Flight . | . . . Utility 3 | 1 2 . Device . | . . . Storage 3 | 1 2 . Processor . | . . . Hackware . | . . . Protection . | . . . Artifact . | . . . Weapon 6 | 2 4 . Energy Gun 2 | 1 1 . Energy Cannon . | . . . Ballistic Gun 3 | 1 2 . Ballistic Cannon . | . . . Launcher 1 | . 1 . Special Weapon . | . . . Impact Weapon . | . . . Slashing Weapon . | . . . Piercing Weapon . | . . . Special Melee Weapon . | . . . Unidentified Prototypes . | . . . Parts Lost 3 | . 1 2 Power . | . . . Propulsion 1 | . . 1 Utility . | . . . Weapon 2 | . 1 1 Highest Loss Streak 1 | . 1 1 To Critical Strikes . | . . . Average Slot Usage (%) 94 | . 93 98 Engine 14 | . 14 14 Treads 10 | . 7 23 Leg 16 | . 20 3 Storage 23 | . 22 28 Energy Gun 4 | . 5 . Ballistic Gun 22 | . 21 28 Peak Build Rating 14 | 6 7 14 Average Rating 6 | 4 6 9 On Entrance 4 | . 6 7 Naked Turns . | . . . Heaviest Build 18 | 12 18 18 Greatest Support 40 | 20 40 40 Greatest Overweight (x) 5 | . 5 . Average Overweight (x) . | . . . Largest Inventory Capacity 8 | 8 8 8 Average Capacity 7 | 6 8 8 Most Carried 8 | 6 8 8 Average Carried 7 | 4 7 7 Final Capacity 8 | 8 8 8 Final Carried 8 | 6 8 8 Class Distribution -------------------- 100% | Mutant Dominant Class ---------------- Mutant | -10/Materials Mutant | -10/Subcaves Resources | -11 -10 -10 ----------- Run | Yrd Mat Sub Matter Collected 866 | 284 469 113 Remotely . | . . . Salvage Created 740 | 97 441 202 Parts 43 | 3 24 16 Haulers Intercepted . | . . . Recyclers Shooed 1 | . 1 . Parts Field Recycled . | . . . Retrieved Matter . | . . . Parts Self-Destructed . | . . . Prevented . | . . . Kills | -11 -10 -10 ------- Run | Yrd Mat Sub Combat Hostiles Destroyed 15 | . 10 5 Guns 13 | . 8 5 AOE 2 | . 2 . Classes Destroyed 6 | 2 3 1 Worker 2 | 1 1 . Builder 2 | . 2 . Recycler 2 | 1 1 . Watcher 2 | . 2 . Grunt 10 | . 10 . Subdweller 5 | . . 5 Best Kill Streak 5 | 1 5 4 Combat Bots Only 4 | . 2 4 Max Kills in Single Turn 2 | 1 2 1 Gunslinging . | . . . Exploded 1 | . 1 . Melee . | . . . Uniques/NPCs Destroyed . | . . . Combat | -11 -10 -10 -------- Run | Yrd Mat Sub Hostile Shots Fired 99 | . 53 46 Missed 32 | . 15 17 Damage Taken 1245 | . 503 742 Core 252 | . 118 134 Absorbed by Shields . | . . . Core Remaining (%) 100 | 100 . . Volleys Fired 67 | 4 45 18 Largest 2 | 2 2 2 Hottest 85 | 60 85 40 Shots Fired 129 | 8 85 36 Gun 119 | 8 75 36 Cannon . | . . . Launcher 10 | . 10 . Special . | . . . Kinetic 87 | 4 47 36 Thermal 32 | 4 28 . Explosive 10 | . 10 . Electromagnetic . | . . . Robot Hit Streak 11 | 2 8 11 Robot Miss Streak 3 | 1 3 1 Penetration Max . | . . . Secondary Targets 3 | . 2 1 Max Gunslinging Chain 1 | . 1 1 Shots Hit Robots 81 | 5 54 22 Core Hits 47 | 4 34 9 Critical Kills . | . . . Critical Parts Destroyed . | . . . Critical Strikes . | . . . Melee Attacks . | . . . Impact . | . . . Slashing . | . . . Piercing . | . . . Sneak Attacks . | . . . Combat Hostiles . | . . . Follow-up Attacks . | . . . Damage Inflicted 1460 | 49 1064 347 Guns 896 | 49 500 347 Cannons . | . . . Explosions 558 | . 558 . Melee . | . . . Ramming 6 | . 6 . Kinetic 572 | 16 209 347 Thermal 324 | 33 291 . Explosive 558 | . 558 . Electromagnetic . | . . . Impact . | . . . Slashing . | . . . Piercing . | . . . Highest Corruption . | . . . Average Corruption . | . . . Corruption Purged . | . . . Corruption Blocked . | . . . Overload Shots . | . . . Overflow Damage 9 | . 9 . Projectiles . | . . . Explosions 9 | . 9 . Melee . | . . . Knockbacks . | . . . Impact . | . . . Kinetic . | . . . Secondary . | . . . Self-Inflicted Damage 15 | . 15 . Shots 1 | . 1 . Rammed . | . . . Targets Rammed 2 | . 2 . Kicked 2 | . 2 . Crushed . | . . . Highest Temperature 241 | 20 241 . Average Temperature 62 | 15 65 . Received Heat Transfer 369 | . 303 66 Siege Activations . | . . . Robots Corrupted . | . . . Combat Hostiles . | . . . Parts Fried . | . . . Impact Corruptions . | . . . Robots Melted . | . . . Combat Hostiles . | . . . Parts Melted 3 | . . 3 Heat Transferred 770 | 75 695 . Parts Sabotaged . | . . . Parts Stolen . | . . . Parts Stripped . | . . . Power Chain Reactions . | . . . Alert | -11 -10 -10 ------- Run | Yrd Mat Sub Peak Influence 198 | 10 198 . Initial 6 | . 6 . Average 40 | 4 47 . Maximum Alert Level . | . . . Low Security (%) 100 | 100 100 . Level 1 . | . . . Level 2 . | . . . Level 3 . | . . . Level 4 . | . . . Level 5 . | . . . High Security . | . . . Max Security . | . . . Squads Dispatched 1 | . 1 . Investigation . | . . . Extermination . | . . . Reinforcement 1 | . 1 . Assault . | . . . Garrison . | . . . Intercept . | . . . Searches Triggered . | . . . Construction Impeded . | . . . Haulers Reinforced . | . . . Active Scanning Responses . | . . . Cargo Convoy Interrupts . | . . . Stealth | -11 -10 -10 --------- Run | Yrd Mat Sub Distress Signals 1 | . 1 . Communications Jammed . | . . . Distress Signals . | . . . Times Spotted 33 | . 20 13 Peak Tracking Total 5 | . 3 5 Tactical Retreats . | . . . Traps | -11 -10 -10 ------- Run | Yrd Mat Sub Traps Triggered 6 | . 1 5 Indirectly . | . . . Trap Hack Attempts . | . . . Triggered . | . . . Disarmed . | . . . Reprogrammed . | . . . Reused . | . . . Traps Extracted . | . . . Installed . | . . . Triggered . | . . . Machines | -11 -10 -10 ---------- Run | Yrd Mat Sub Machines Disabled . | . . . Max in Single Turn . | . . . Machines Repaired . | . . . Machines Dismantled . | . . . Machines Sabotaged . | . . . Overloaded Fab Kills . | . . . Hacking | -11 -10 -10 --------- Run | Yrd Mat Sub Machines Accessed 7 | . 7 . Terminals 5 | . 5 . Fabricators . | . . . Repair Stations 1 | . 1 . Recycling Units 1 | . 1 . Scanalyzers . | . . . Garrison Access . | . . . Total Hacks 21 | . 21 . Successful 9 | . 9 . Failed 12 | . 12 . Catastrophic 1 | . 1 . Database Lockouts . | . . . Manual . | . . . Terminals 13 | . 13 . Fabricators . | . . . Repair Stations 3 | . 3 . Recycling Units 5 | . 5 . Scanalyzers . | . . . Garrison Access . | . . . Terminal Hacks 7 | . 7 . Record 3 | . 3 . Alert Level 1 | . 1 . Locate Traps 2 | . 2 . Reinforcement Status 1 | . 1 . Fabricator Hacks . | . . . Repair Station Hacks 1 | . 1 . Scan Component 1 | . 1 . Recycling Unit Hacks 1 | . 1 . Retrieve Components 1 | . 1 . Scanalyzer . | . . . Garrison Access Hacks . | . . . Unauthorized Hacks . | . . . Terminals . | . . . Fabricators . | . . . Repair Stations . | . . . Recycling Units . | . . . Scanalyzers . | . . . Garrison Access . | . . . Data Cores Recovered . | . . . Used . | . . . Hacking Detections 6 | . 6 . Full Trace Events 4 | . 4 . Feedback Events . | . . . Feedback Blocked . | . . . Robot Schematics Acquired . | . . . Robots Built . | . . . Authchips . | . . . Time . | . . . Total Robot Build Rating . | . . . Part Schematics Acquired . | . . . Parts Built . | . . . Authchips . | . . . Time . | . . . Total Part Build Rating . | . . . Parts Repaired . | . . . Time . | . . . Parts Recycled . | . . . Recycled Matter . | . . . Retrieved Matter . | . . . Retrieved Components 9 | . 9 . Parts Scanalyzed . | . . . Part Schematics Acquired . | . . . Parts Damaged . | . . . Bothacking | -11 -10 -10 ------------ Run | Yrd Mat Sub Used RIF Installer . | . . . Robots Hacked . | . . . Non-combat . | . . . Combat . | . . . Robot Hacks Applied . | . . . Relay Couplers Released . | . . . Fabnet Peak Effective % . | . . . Robots Rewired . | . . . Allies Hacked . | . . . Hacks Repelled . | . . . Allies | -11 -10 -10 -------- Run | Yrd Mat Sub Total Allies . | . . . Largest Group . | . . . Highest-Rated Group . | . . . Highest-Rated Ally . | . . . Total Orders . | . . . Ally Attacks . | . . . Total Damage . | . . . Kills . | . . . Allies Corrupted . | . . . Allies Melted . | . . . Intel | -11 -10 -10 ------- Run | Yrd Mat Sub Robot Analysis Total . | . . . Derelict Logs Recovered . | . . . Drone Launches . | . . . Drone Recoveries . | . . . Exploration | -11 -10 -10 ------------- Run | Yrd Mat Sub Turns Passed 2267 | 296 1547 424 Spaces Moved 1456 | 240 995 221 Core 43 | 36 7 . Treads 377 | . 239 138 Legs 1036 | 204 749 83 Wheels . | . . . Hover . | . . . Flight . | . . . Fastest Speed 50 | 50 120 120 Average Speed 129 | 109 131 144 Slowest Speed 300 | 120 300 160 Overloaded Moves . | . . . Propulsion Burnouts . | . . . Robots Hopped . | . . . Cave-ins Triggered . | . . . Exploration Rate (%) 32 | 10 73 13 Regions Visited 2 Branch Regions 1 Pre-discovered Areas . | . . . Known Exits Taken . | . . . Unknown Exits Taken 2 | 1 1 . Scrap Searched . | . . . Spaces Dug . | . . . Terrain Destroyed 47 | . 47 . Melee . | . . . Projectile . | . . . AOE 47 | . 47 . Terrain Rammed . | . . . Walls Destroyed . | . . . Machines Disabled . | . . . Actions | -11 -10 -10 --------- Run | Yrd Mat Sub Total 1718 | 267 1162 289 Wait 121 | . 88 33 Move 1454 | 239 994 221 Hop . | . . . Pick Up 36 | 15 13 8 Fast Attach . | . . . Attach 14 | 6 7 1 Detach 3 | . 3 . Swap 3 | . 3 . Drop 18 | 3 7 8 Fire 67 | 4 45 18 Melee . | . . . Ram . | . . . Kick 2 | . 2 . Crush . | . . . Escape Stasis . | . . . Rewire . | . . . Trap . | . . . Miscellaneous . | . . . Route ------- -11/Scrapyard -10/Materials (discovered 4 exits: [*Mat x2] / [*Min] / [*Sub]) -10/Subcaves History --------- Turn | Location | Event 16 | -11/Scrapyard | Discovered new exit (range 15) 297 | -11/Scrapyard | Entered Materials 317 | -10/Materials | Build established: Mutant 686 | -10/Materials | Discovered new exit (range 8) 1171 | -10/Materials | Discovered new exit (range 13) 1244 | -10/Materials | Discovered new exit (range 10) 1402 | -10/Materials | Discovered new exit (range 7) 1844 | -10/Materials | Entered Subcaves 2049 | -10/Subcaves | Core integrity fell below 50% 2069 | -10/Subcaves | Ambushed by swarm of Subdwellers 2122 | -10/Subcaves | Lost 4 allies 2138 | -10/Subcaves | Core integrity fell below 20% 2268 | -10/Subcaves | Destroyed by BA-FSV(R) with Subdweller Machine Gun Last Messages --------------- Source. 02174_ 6D-RV4(O) collects matter. 02176_ 6D-RV4(O) puts together Mak. Kinetic Plating. 02180_ 6D-RV4(O) collects matter. 02183_ Subatomizers dissect the Sub. Power Source. 02186_ 6D-RV4(O) collects matter. 02209_ Subatomizers dissect the Sub. Power Source. 02216_ 6D-RV4(O) puts together Scrap Shield. 02226_ Triggered Piercing Trap. 02226_ Spikes shoot up from the floor. 02226_ Critical hit (Impale). 02229_ Triggered Piercing Trap. 02229_ Spikes shoot up from the floor. 02231_ Triggered Shrapnel Trap. 02231_ An expanding cloud of shrapnel blasts out in all directions. 02264_ Assault Rifle destroyed. Map ----- +----------------------------------------------------+ | ?????????????????????????????????????????????????? | | ?????????????????????????????????????????????????? | | ?????????????????????????????????????????????????? | | ?????????????????????????????????????????????????? | | ?????????????????????????????????????????????????? | | ?????????????????????????????????????????????????? | | ?????????????????????????????????????????????????? | | ?????????????????????????????????????????????????? | | ?????????????????????????????????????????????????? | | ?????????????????????????????????????????????????? | | ?????????????????????????????????????????????????? | | ?????????????????????????????????????????????????? | | ????????????????????? ???????????????????????????? | | ???????????????????? ?###??????????????????????? | | ???????????????????? ## ##????????????????????? | | ????????????????????? #????????????????????? | | ?????????????????????? ##???????????????????? | | ?????????????????????? #???????????????????? | | ??????????????????????? #???????????????????? | | ???????????????????????? #???????????????????? | | ????????????????????????# #???????????? ??????? | | ????????????????????????# ?####???????? ??????? | | ????????????????????????# s### ##????? ??????? | | ?????????????????????##?# ## #????? ??????? | | ??????????????????# # ## ## #????? ???????? | | ???????????????#" # @ #????? ???????? | | ??????????????# " R R #????? ???????? | | ??????????????#"""" # ##???? #???????? | | ????????????????""" #?#### ## #???? ##??????? | | ????????????????""" ?????# ### ###### #??????? | | ????????????????""???????## #?# #????????? | | ????????????????#????????? #?# ##???????? | | ?????????????????????????## ?# ## #???????? | | ??????????????????????????# ######## #???????? | | ??????????????????????????# ###??# ####?????? | | ??????????????????????????# #?# ""##????? | | ??????????????????????????# ##" "###??? | | ??????????????????????????# # " #??? | | ?????????????????????? ???# " #??? | | ?????????????????????? #??# " #??? | | ?????????????????????? ??# ##" " #??? | | ?????????????????????? ?## ###?## ^!*[# #??? | | ?????????????????????? #?# #??????## =[#####??? | | ?????????????????????? #?# ?#??###### [&#?????? | | ????????????????????## ?# #?## ### [#?????? | | ????????????????????# ##? #?# ## &######? | | ????????????????????# #??# #???# #!!=#& ""## | | ????????????????????? ????# ##??# [!*! """# | | ????????????????##### ##??## ####### [&! = ### | | ???????????????## #"# #?## #??# [ #?? | +----------------------------------------------------+ Best States ------------- Heat Dissipation 25 Energy Generation 10 Energy Capacity 250 Matter Stores 500 Matter Capacity 500 Sight Range 16 Terrain Scan Density 10 Evasion (%) 55 Recoil Reduction 2 Item Schematics ----------------- None Robot Schematics ------------------ None Fabricated ------------ Nothing Alien Tech Used ----------------- None Achievements -------------- Crack Shot Challenges ------------ None Game ------ Seed SiegeCompositeTelecube Manual? 0 Play Time 00:36:30 Cumulative 0.7 hours Start 2024.12.22 @ 19:12:56 End 2024.12.22 @ 21:31:25 Sessions 1 Manual Loads 0 Difficulty Rogue Special Mode None Game No. 3 Rogue 3 Adventurer 0 Explorer 0 Win Type - Total 0 Types 0/0/0/0/0/0/0/0/0 Lore% 0 Gallery% 1 Achievement% 1 Wizard Run 0 Options --------- Layout 1 ASCII 0 Keyboard 1 Movement Vi Keybinds 0 Fullscreen 2 Font 24/Tamsyn Map View 50x35 Zoom Use 0% Tactical HUD 1 Map Filters NONE Filters NONE Steam 1 RUN: 72ec14cf-1b8e-4426-afdd-c63d26d54bb4